{"text_format":"3","workbook":"xlsx","n_sheets":6,"sheets":["Instrumentbord","Salg","Inntekter","Utgifter","Avgifter","Kategorier"],"not_rendered":{"images":1,"defined_names":34},"read":"whole","date_system":"1900"}

{"sheet":"Instrumentbord","index":0,"n_rows":20,"n_cols":8,"rows_kept":20,"merged":[[0,2,0,4],[0,6,3,7],[5,1,5,7]]}
[null,"Resultatregnskap","For [måneden eller året] som slutter [dag.måned.år]"]
[null,"Firmanavn","Angitt i 000"]
[null,"Gjeldende bruttomargin [L/J]",{"$f":"IFERROR(IF(Total_bruttofortjeneste=0,\"-\",Total_bruttofortjeneste/Total_salgsomsetning),\"-\")","v":"-"}]
[null,"Gjeldende avkastning på salg [T/J]",{"$f":"IFERROR(IF(Nettofortjeneste=0,\"-\",Nettofortjeneste/Total_salgsomsetning),\"-\")","v":"-"}]
[]
[null,"Du må ikke endre kategoriene i dette regnearket, ellers kan formlene brytes. Bruk regnearket Kategori til å legge til kategorier og oppdatere de korresponderende regnearkene med oppføringer. Dette regnearket oppdateres automatisk."]
[null,"Sammendrag","Total forrige periode","Totalt budsjett","Total gjeldende\nPeriode","Total gjeldende periode som % av salg","Total % endring fra forrige periode","Total % endring fra budsjett"]
[null,"Total salgsomsetning [J]",{"$f":"SUMIFS(Salgsomsetning_1[Forrige periode],Salgsomsetning_1[Omsetningstype],\"Salgsomsetning\")","v":0},{"$f":"SUMIFS(Salgsomsetning_1[Budsjett],Salgsomsetning_1[Omsetningstype],\"Salgsomsetning\")","v":0},{"$f":"SUMIFS(Salgsomsetning_1[Gjeldende periode],Salgsomsetning_1[Omsetningstype],\"Salgsomsetning\")","v":0},{"$f":"SUMIFS(Salgsomsetning_1[Gjeldende periode som % av salg],Salgsomsetning_1[Omsetningstype],\"Salgsomsetning\")","v":{"v":0,"d":"0.00%"}},{"$f":"SUMIFS(Salgsomsetning_1[% endring fra forrige periode],Salgsomsetning_1[Omsetningstype],\"Salgsomsetning\")","v":{"v":0,"d":"0.00%"}},{"$f":"SUMIFS(Salgsomsetning_1[% endring fra budsjett],Salgsomsetning_1[Omsetningstype],\"Salgsomsetning\")","v":{"v":0,"d":"0.00%"}}]
[null,"Total salgskostnad [K]",{"$f":"SUMIFS(Salgsomsetning_1[Forrige periode],Salgsomsetning_1[Omsetningstype],\"Kostnad for salg\")","v":0},{"$f":"SUMIFS(Salgsomsetning_1[Budsjett],Salgsomsetning_1[Omsetningstype],\"Kostnad for salg\")","v":0},{"$f":"SUMIFS(Salgsomsetning_1[Gjeldende periode],Salgsomsetning_1[Omsetningstype],\"Kostnad for salg\")","v":0},{"$f":"SUMIFS(Salgsomsetning_1[Gjeldende periode som % av salg],Salgsomsetning_1[Omsetningstype],\"Kostnad for salg\")","v":{"v":0,"d":"0.00%"}},{"$f":"SUMIFS(Salgsomsetning_1[% endring fra forrige periode],Salgsomsetning_1[Omsetningstype],\"Kostnad for salg\")","v":{"v":0,"d":"0.00%"}},{"$f":"SUMIFS(Salgsomsetning_1[% endring fra budsjett],Salgsomsetning_1[Omsetningstype],\"Kostnad for salg\")","v":{"v":0,"d":"0.00%"}}]
[null,"Totale utgifter av salg og markedsføring [M]",{"$f":"SUMIFS(Driftsutgifter[Forrige periode],Driftsutgifter[Utgiftstype],\"Salg og markedsføring\")","v":0},{"$f":"SUMIFS(Driftsutgifter[Budsjett],Driftsutgifter[Utgiftstype],\"Salg og markedsføring\")","v":0},{"$f":"SUMIFS(Driftsutgifter[Gjeldende periode],Driftsutgifter[Utgiftstype],\"Salg og markedsføring\")","v":0},{"$f":"SUMIFS(Driftsutgifter[Gjeldende periode som % av salg],Driftsutgifter[Utgiftstype],\"Salg og markedsføring\")","v":{"v":0,"d":"0.00%"}},{"$f":"SUMIFS(Driftsutgifter[% endring fra forrige periode],Driftsutgifter[Utgiftstype],\"Salg og markedsføring\")","v":{"v":0,"d":"0.00%"}},{"$f":"SUMIFS(Driftsutgifter[% endring fra budsjett],Driftsutgifter[Utgiftstype],\"Salg og markedsføring\")","v":{"v":0,"d":"0.00%"}}]
[null,"Totale utgifter av forskning og utvikling [N]",{"$f":"SUMIFS(Driftsutgifter[Forrige periode],Driftsutgifter[Utgiftstype],\"Forskning og utvikling\")","v":0},{"$f":"SUMIFS(Driftsutgifter[Budsjett],Driftsutgifter[Utgiftstype],\"Forskning og utvikling\")","v":0},{"$f":"SUMIFS(Driftsutgifter[Gjeldende periode],Driftsutgifter[Utgiftstype],\"Forskning og utvikling\")","v":0},{"$f":"SUMIFS(Driftsutgifter[Gjeldende periode som % av salg],Driftsutgifter[Utgiftstype],\"Forskning og utvikling\")","v":{"v":0,"d":"0.00%"}},{"$f":"SUMIFS(Driftsutgifter[% endring fra forrige periode],Driftsutgifter[Utgiftstype],\"Forskning og utvikling\")","v":{"v":0,"d":"0.00%"}},{"$f":"SUMIFS(Driftsutgifter[% endring fra budsjett],Driftsutgifter[Utgiftstype],\"Forskning og utvikling\")","v":{"v":0,"d":"0.00%"}}]
[null,"Generelle og administrative utgifter [O]",{"$f":"SUMIFS(Driftsutgifter[Forrige periode],Driftsutgifter[Utgiftstype],\"Generell og administrativ\")","v":0},{"$f":"SUMIFS(Driftsutgifter[Budsjett],Driftsutgifter[Utgiftstype],\"Generell og administrativ\")","v":0},{"$f":"SUMIFS(Driftsutgifter[Gjeldende periode],Driftsutgifter[Utgiftstype],\"Generell og administrativ\")","v":0},{"$f":"SUMIFS(Driftsutgifter[Gjeldende periode som % av salg],Driftsutgifter[Utgiftstype],\"Generell og administrativ\")","v":{"v":0,"d":"0.00%"}},{"$f":"SUMIFS(Driftsutgifter[% endring fra forrige periode],Driftsutgifter[Utgiftstype],\"Generell og administrativ\")","v":{"v":0,"d":"0.00%"}},{"$f":"SUMIFS(Driftsutgifter[% endring fra budsjett],Driftsutgifter[Utgiftstype],\"Generell og administrativ\")","v":{"v":0,"d":"0.00%"}}]
[null,"Totale andre driftskostnader [P]",{"$f":"Driftsutgifter[[#Totals],[Forrige periode]]-SUM(C10:C12)","v":0},{"$f":"Driftsutgifter[[#Totals],[Budsjett]]-SUM(D10:D12)","v":0},{"$f":"Driftsutgifter[[#Totals],[Gjeldende periode]]-SUM(E10:E12)","v":0},{"$f":"Driftsutgifter[[#Totals],[Gjeldende periode som % av salg]]-SUM(F10:F12)","v":{"v":0,"d":"0.00%"}},{"$f":"Driftsutgifter[[#Totals],[% endring fra forrige periode]]-SUM(G10:G12)","v":{"v":0,"d":"0.00%"}},{"$f":"Driftsutgifter[[#Totals],[% endring fra budsjett]]-SUM(H10:H12)","v":{"v":0,"d":"0.00%"}}]
[null,"Annen inntekt [S]",{"$f":"Inntekt[[#Totals],[Forrige periode]]","v":0},{"$f":"Inntekt[[#Totals],[Budsjett]]","v":0},{"$f":"Inntekt[[#Totals],[Gjeldende periode]]","v":0},{"$f":"Inntekt[[#Totals],[Gjeldende periode som % av salg]]","v":{"v":0,"d":"0.00%"}},{"$f":"Inntekt[[#Totals],[% endring fra forrige periode]]","v":{"v":0,"d":"0.00%"}},{"$f":"Inntekt[[#Totals],[% endring fra budsjett]]","v":{"v":0,"d":"0.00%"}}]
[null,"Totale avgifter [T]",{"$f":"Skatt[[#Totals],[Forrige periode]]","v":0},{"$f":"Skatt[[#Totals],[Budsjett]]","v":0},{"$f":"Skatt[[#Totals],[Gjeldende periode]]","v":0},{"$f":"Skatt[[#Totals],[Gjeldende periode som % av salg]]","v":{"v":0,"d":"0.00%"}},{"$f":"Skatt[[#Totals],[% endring fra forrige periode]]","v":{"v":0,"d":"0.00%"}},{"$f":"Skatt[[#Totals],[% endring fra budsjett]]","v":{"v":0,"d":"0.00%"}}]
[]
[null,"Bruttofortjeneste [L=J-K]",{"$f":"IFERROR(C8-C9,\"-\")","v":0},{"$f":"IFERROR(D8-D9,\"-\")","v":0},{"$f":"IFERROR(Total_salgsomsetning-Totalkostnad_salg,\"-\")","v":0},{"$f":"IFERROR(IF(Total_salgsomsetning=0,\"0.00%\",Total_bruttofortjeneste/Total_salgsomsetning),\"-\")","v":"0.00%"},{"$f":"IFERROR(IF(C17=Total_bruttofortjeneste,0,IF(Total_bruttofortjeneste>C17,ABS((Total_bruttofortjeneste/C17)-1),IF(AND(Total_bruttofortjeneste<C17,C17<0),-((Total_bruttofortjeneste/C17)-1),(Total_bruttofortjeneste/C17)-1))),\"-\")","v":{"v":0,"d":"0.00%"}},{"$f":"IFERROR(IF(D17=Total_bruttofortjeneste,0,IF(Total_bruttofortjeneste>D17,ABS((Total_bruttofortjeneste/D17)-1),IF(AND(Total_bruttofortjeneste<D17,D17<0),-((Total_bruttofortjeneste/D17)-1),(Total_bruttofortjeneste/D17)-1))),\"-\")","v":{"v":0,"d":"0.00%"}}]
[null,"Totale driftsutgifter [Q=M+N+O+P]",{"$f":"IFERROR(C10+C11+C12+C13,\"-\")","v":0},{"$f":"IFERROR(D10+D11+D12+D13,\"-\")","v":0},{"$f":"IFERROR(Total_salg_og_markedsføring+Total_forskning_og_utvikling+Total_generell_og_administrativ+Totale_andre_utgifter,\"-\")","v":0},{"$f":"IFERROR(IF(Total_salgsomsetning=0,\"0.00%\",Totale_driftsutgifter/Total_salgsomsetning),\"-\")","v":"0.00%"},{"$f":"IFERROR(IF(C18=Totale_driftsutgifter,0,IF(Totale_driftsutgifter>C18,ABS((Totale_driftsutgifter/C18)-1),IF(AND(Totale_driftsutgifter<C18,C18<0),-((Totale_driftsutgifter/C18)-1),(Totale_driftsutgifter/C18)-1))),\"-\")","v":{"v":0,"d":"0.00%"}},{"$f":"IFERROR(IF(D18=Totale_driftsutgifter,0,IF(Totale_driftsutgifter>D18,ABS((Totale_driftsutgifter/D18)-1),IF(AND(Totale_driftsutgifter<D18,D18<0),-((Totale_driftsutgifter/D18)-1),(Totale_driftsutgifter/D18)-1))),\"-\")","v":{"v":0,"d":"0.00%"}}]
[null,"Driftsinntekter  [R=L-Q]",{"$f":"IFERROR(C17-C18,\"-\")","v":0},{"$f":"IFERROR(D17-D18,\"-\")","v":0},{"$f":"IFERROR(Total_bruttofortjeneste-Totale_driftsutgifter,\"-\")","v":0},{"$f":"IFERROR(IF(Total_salgsomsetning=0,\"0.00%\",Totalinntekt_drift/Total_salgsomsetning),\"-\")","v":"0.00%"},{"$f":"IFERROR(IF(C19=Totalinntekt_drift,0,IF(Totalinntekt_drift>C19,ABS((Totalinntekt_drift/C19)-1),IF(AND(Totalinntekt_drift<C19,C19<0),-((Totalinntekt_drift/C19)-1),(Totalinntekt_drift/C19)-1))),\"-\")","v":{"v":0,"d":"0.00%"}},{"$f":"IFERROR(IF(D19=Totalinntekt_drift,0,IF(Totalinntekt_drift>D19,ABS((Totalinntekt_drift/D19)-1),IF(AND(Totalinntekt_drift<D19,D19<0),-((Totalinntekt_drift/D19)-1),(Totalinntekt_drift/D19)-1))),\"-\")","v":{"v":0,"d":"0.00%"}}]
[null,"Nettofortjeneste  [U=R+S-T]",{"$f":"IFERROR(C19+C14-C15,\"-\")","v":0},{"$f":"IFERROR(D19+D14-D15,\"-\")","v":0},{"$f":"Totalinntekt_drift+Total_annen_inntekt-Total_skatt","v":0},{"$f":"IFERROR(IF(Total_salgsomsetning=0,\"0.00%\",Nettofortjeneste/Total_salgsomsetning),\"-\")","v":"0.00%"},{"$f":"IFERROR(IF(C20=Nettofortjeneste,0,IF(Nettofortjeneste>C20,ABS((Nettofortjeneste/C20)-1),IF(AND(Nettofortjeneste<C20,C20<0),-((Nettofortjeneste/C20)-1),(Nettofortjeneste/C20)-1))),\"-\")","v":{"v":0,"d":"0.00%"}},{"$f":"IFERROR(IF(D20=Nettofortjeneste,0,IF(Nettofortjeneste>D20,ABS((Nettofortjeneste/D20)-1),IF(AND(Nettofortjeneste<D20,D20<0),-((Nettofortjeneste/D20)-1),(Nettofortjeneste/D20)-1))),\"-\")","v":{"v":0,"d":"0.00%"}}]

{"sheet":"Salg","index":1,"n_rows":13,"n_cols":9,"rows_kept":13,"merged":[[0,7,2,8]]}
[null,{"$f":"Arbeidsbok_Tittel","v":"Resultatregnskap"}]
[null,{"$f":"Firmanavn","v":"Firmanavn"},"Angitt i 000"]
[null,"Salgsomsetning",{"$f":"IFERROR(Salgsomsetning,\"-\")","v":0}]
[null,"Omsetningstype","Beskrivelse","Forrige periode","Budsjett","Gjeldende periode","Gjeldende periode som % av salg","% endring fra forrige periode","% endring fra budsjett"]
[null,"Salgsomsetning","Produkt/tjeneste 1",{"$nulls":3},{"$f":"IFERROR(IF(Salgsomsetning_1[[#Totals],[Gjeldende periode]]=0,\"-\",Salgsomsetning_1[[#This Row],[Gjeldende periode]]/Salgsomsetning),\"-\")","v":"-"},{"$f":"IFERROR(IF(Salgsomsetning_1[[#This Row],[Forrige periode]]=Salgsomsetning_1[[#This Row],[Gjeldende periode]],0,IF(Salgsomsetning_1[[#This Row],[Gjeldende periode]]>Salgsomsetning_1[[#This Row],[Forrige periode]],ABS((Salgsomsetning_1[[#This Row],[Gjeldende periode]]/Salgsomsetning_1[[#This Row],[Forrige periode]])-1),IF(AND(Salgsomsetning_1[[#This Row],[Gjeldende periode]]<Salgsomsetning_1[[#This Row],[Forrige periode]],Salgsomsetning_1[[#This Row],[Forrige periode]]<0),-((Salgsomsetning_1[[#This Row],[Gjeldende periode]]/Salgsomsetning_1[[#This Row],[Forrige periode]])-1),(Salgsomsetning_1[[#This Row],[Gjeldende periode]]/Salgsomsetning_1[[#This Row],[Forrige periode]])-1))),\"-\")","v":{"v":0,"d":"0.00%"}},{"$f":"IFERROR(IF(Salgsomsetning_1[[#This Row],[Budsjett]]=Salgsomsetning_1[[#This Row],[Gjeldende periode]],0,IF(Salgsomsetning_1[[#This Row],[Gjeldende periode]]>Salgsomsetning_1[[#This Row],[Budsjett]],ABS((Salgsomsetning_1[[#This Row],[Gjeldende periode]]/Salgsomsetning_1[[#This Row],[Budsjett]])-1),IF(AND(Salgsomsetning_1[[#This Row],[Gjeldende periode]]<Salgsomsetning_1[[#This Row],[Budsjett]],Salgsomsetning_1[[#This Row],[Budsjett]]<0),-((Salgsomsetning_1[[#This Row],[Gjeldende periode]]/Salgsomsetning_1[[#This Row],[Budsjett]])-1),(Salgsomsetning_1[[#This Row],[Gjeldende periode]]/Salgsomsetning_1[[#This Row],[Budsjett]])-1))),\"-\")","v":{"v":0,"d":"0.00%"}}]
[null,"Salgsomsetning","Produkt/tjeneste 2",{"$nulls":3},{"$f":"IFERROR(IF(Salgsomsetning_1[[#Totals],[Gjeldende periode]]=0,\"-\",Salgsomsetning_1[[#This Row],[Gjeldende periode]]/Salgsomsetning),\"-\")","v":"-"},{"$f":"IFERROR(IF(Salgsomsetning_1[[#This Row],[Forrige periode]]=Salgsomsetning_1[[#This Row],[Gjeldende periode]],0,IF(Salgsomsetning_1[[#This Row],[Gjeldende periode]]>Salgsomsetning_1[[#This Row],[Forrige periode]],ABS((Salgsomsetning_1[[#This Row],[Gjeldende periode]]/Salgsomsetning_1[[#This Row],[Forrige periode]])-1),IF(AND(Salgsomsetning_1[[#This Row],[Gjeldende periode]]<Salgsomsetning_1[[#This Row],[Forrige periode]],Salgsomsetning_1[[#This Row],[Forrige periode]]<0),-((Salgsomsetning_1[[#This Row],[Gjeldende periode]]/Salgsomsetning_1[[#This Row],[Forrige periode]])-1),(Salgsomsetning_1[[#This Row],[Gjeldende periode]]/Salgsomsetning_1[[#This Row],[Forrige periode]])-1))),\"-\")","v":{"v":0,"d":"0.00%"}},{"$f":"IFERROR(IF(Salgsomsetning_1[[#This Row],[Budsjett]]=Salgsomsetning_1[[#This Row],[Gjeldende periode]],0,IF(Salgsomsetning_1[[#This Row],[Gjeldende periode]]>Salgsomsetning_1[[#This Row],[Budsjett]],ABS((Salgsomsetning_1[[#This Row],[Gjeldende periode]]/Salgsomsetning_1[[#This Row],[Budsjett]])-1),IF(AND(Salgsomsetning_1[[#This Row],[Gjeldende periode]]<Salgsomsetning_1[[#This Row],[Budsjett]],Salgsomsetning_1[[#This Row],[Budsjett]]<0),-((Salgsomsetning_1[[#This Row],[Gjeldende periode]]/Salgsomsetning_1[[#This Row],[Budsjett]])-1),(Salgsomsetning_1[[#This Row],[Gjeldende periode]]/Salgsomsetning_1[[#This Row],[Budsjett]])-1))),\"-\")","v":{"v":0,"d":"0.00%"}}]
[null,"Salgsomsetning","Produkt/tjeneste 3",{"$nulls":3},{"$f":"IFERROR(IF(Salgsomsetning_1[[#Totals],[Gjeldende periode]]=0,\"-\",Salgsomsetning_1[[#This Row],[Gjeldende periode]]/Salgsomsetning),\"-\")","v":"-"},{"$f":"IFERROR(IF(Salgsomsetning_1[[#This Row],[Forrige periode]]=Salgsomsetning_1[[#This Row],[Gjeldende periode]],0,IF(Salgsomsetning_1[[#This Row],[Gjeldende periode]]>Salgsomsetning_1[[#This Row],[Forrige periode]],ABS((Salgsomsetning_1[[#This Row],[Gjeldende periode]]/Salgsomsetning_1[[#This Row],[Forrige periode]])-1),IF(AND(Salgsomsetning_1[[#This Row],[Gjeldende periode]]<Salgsomsetning_1[[#This Row],[Forrige periode]],Salgsomsetning_1[[#This Row],[Forrige periode]]<0),-((Salgsomsetning_1[[#This Row],[Gjeldende periode]]/Salgsomsetning_1[[#This Row],[Forrige periode]])-1),(Salgsomsetning_1[[#This Row],[Gjeldende periode]]/Salgsomsetning_1[[#This Row],[Forrige periode]])-1))),\"-\")","v":{"v":0,"d":"0.00%"}},{"$f":"IFERROR(IF(Salgsomsetning_1[[#This Row],[Budsjett]]=Salgsomsetning_1[[#This Row],[Gjeldende periode]],0,IF(Salgsomsetning_1[[#This Row],[Gjeldende periode]]>Salgsomsetning_1[[#This Row],[Budsjett]],ABS((Salgsomsetning_1[[#This Row],[Gjeldende periode]]/Salgsomsetning_1[[#This Row],[Budsjett]])-1),IF(AND(Salgsomsetning_1[[#This Row],[Gjeldende periode]]<Salgsomsetning_1[[#This Row],[Budsjett]],Salgsomsetning_1[[#This Row],[Budsjett]]<0),-((Salgsomsetning_1[[#This Row],[Gjeldende periode]]/Salgsomsetning_1[[#This Row],[Budsjett]])-1),(Salgsomsetning_1[[#This Row],[Gjeldende periode]]/Salgsomsetning_1[[#This Row],[Budsjett]])-1))),\"-\")","v":{"v":0,"d":"0.00%"}}]
[null,"Salgsomsetning","Produkt/tjeneste 4",{"$nulls":3},{"$f":"IFERROR(IF(Salgsomsetning_1[[#Totals],[Gjeldende periode]]=0,\"-\",Salgsomsetning_1[[#This Row],[Gjeldende periode]]/Salgsomsetning),\"-\")","v":"-"},{"$f":"IFERROR(IF(Salgsomsetning_1[[#This Row],[Forrige periode]]=Salgsomsetning_1[[#This Row],[Gjeldende periode]],0,IF(Salgsomsetning_1[[#This Row],[Gjeldende periode]]>Salgsomsetning_1[[#This Row],[Forrige periode]],ABS((Salgsomsetning_1[[#This Row],[Gjeldende periode]]/Salgsomsetning_1[[#This Row],[Forrige periode]])-1),IF(AND(Salgsomsetning_1[[#This Row],[Gjeldende periode]]<Salgsomsetning_1[[#This Row],[Forrige periode]],Salgsomsetning_1[[#This Row],[Forrige periode]]<0),-((Salgsomsetning_1[[#This Row],[Gjeldende periode]]/Salgsomsetning_1[[#This Row],[Forrige periode]])-1),(Salgsomsetning_1[[#This Row],[Gjeldende periode]]/Salgsomsetning_1[[#This Row],[Forrige periode]])-1))),\"-\")","v":{"v":0,"d":"0.00%"}},{"$f":"IFERROR(IF(Salgsomsetning_1[[#This Row],[Budsjett]]=Salgsomsetning_1[[#This Row],[Gjeldende periode]],0,IF(Salgsomsetning_1[[#This Row],[Gjeldende periode]]>Salgsomsetning_1[[#This Row],[Budsjett]],ABS((Salgsomsetning_1[[#This Row],[Gjeldende periode]]/Salgsomsetning_1[[#This Row],[Budsjett]])-1),IF(AND(Salgsomsetning_1[[#This Row],[Gjeldende periode]]<Salgsomsetning_1[[#This Row],[Budsjett]],Salgsomsetning_1[[#This Row],[Budsjett]]<0),-((Salgsomsetning_1[[#This Row],[Gjeldende periode]]/Salgsomsetning_1[[#This Row],[Budsjett]])-1),(Salgsomsetning_1[[#This Row],[Gjeldende periode]]/Salgsomsetning_1[[#This Row],[Budsjett]])-1))),\"-\")","v":{"v":0,"d":"0.00%"}}]
[null,"Kostnad for salg","Produkt/tjeneste 1",{"$nulls":3},{"$f":"IFERROR(IF(Salgsomsetning_1[[#Totals],[Gjeldende periode]]=0,\"-\",Salgsomsetning_1[[#This Row],[Gjeldende periode]]/Salgsomsetning),\"-\")","v":"-"},{"$f":"IFERROR(IF(Salgsomsetning_1[[#This Row],[Forrige periode]]=Salgsomsetning_1[[#This Row],[Gjeldende periode]],0,IF(Salgsomsetning_1[[#This Row],[Gjeldende periode]]>Salgsomsetning_1[[#This Row],[Forrige periode]],ABS((Salgsomsetning_1[[#This Row],[Gjeldende periode]]/Salgsomsetning_1[[#This Row],[Forrige periode]])-1),IF(AND(Salgsomsetning_1[[#This Row],[Gjeldende periode]]<Salgsomsetning_1[[#This Row],[Forrige periode]],Salgsomsetning_1[[#This Row],[Forrige periode]]<0),-((Salgsomsetning_1[[#This Row],[Gjeldende periode]]/Salgsomsetning_1[[#This Row],[Forrige periode]])-1),(Salgsomsetning_1[[#This Row],[Gjeldende periode]]/Salgsomsetning_1[[#This Row],[Forrige periode]])-1))),\"-\")","v":{"v":0,"d":"0.00%"}},{"$f":"IFERROR(IF(Salgsomsetning_1[[#This Row],[Budsjett]]=Salgsomsetning_1[[#This Row],[Gjeldende periode]],0,IF(Salgsomsetning_1[[#This Row],[Gjeldende periode]]>Salgsomsetning_1[[#This Row],[Budsjett]],ABS((Salgsomsetning_1[[#This Row],[Gjeldende periode]]/Salgsomsetning_1[[#This Row],[Budsjett]])-1),IF(AND(Salgsomsetning_1[[#This Row],[Gjeldende periode]]<Salgsomsetning_1[[#This Row],[Budsjett]],Salgsomsetning_1[[#This Row],[Budsjett]]<0),-((Salgsomsetning_1[[#This Row],[Gjeldende periode]]/Salgsomsetning_1[[#This Row],[Budsjett]])-1),(Salgsomsetning_1[[#This Row],[Gjeldende periode]]/Salgsomsetning_1[[#This Row],[Budsjett]])-1))),\"-\")","v":{"v":0,"d":"0.00%"}}]
[null,"Kostnad for salg","Produkt/tjeneste 2",{"$nulls":3},{"$f":"IFERROR(IF(Salgsomsetning_1[[#Totals],[Gjeldende periode]]=0,\"-\",Salgsomsetning_1[[#This Row],[Gjeldende periode]]/Salgsomsetning),\"-\")","v":"-"},{"$f":"IFERROR(IF(Salgsomsetning_1[[#This Row],[Forrige periode]]=Salgsomsetning_1[[#This Row],[Gjeldende periode]],0,IF(Salgsomsetning_1[[#This Row],[Gjeldende periode]]>Salgsomsetning_1[[#This Row],[Forrige periode]],ABS((Salgsomsetning_1[[#This Row],[Gjeldende periode]]/Salgsomsetning_1[[#This Row],[Forrige periode]])-1),IF(AND(Salgsomsetning_1[[#This Row],[Gjeldende periode]]<Salgsomsetning_1[[#This Row],[Forrige periode]],Salgsomsetning_1[[#This Row],[Forrige periode]]<0),-((Salgsomsetning_1[[#This Row],[Gjeldende periode]]/Salgsomsetning_1[[#This Row],[Forrige periode]])-1),(Salgsomsetning_1[[#This Row],[Gjeldende periode]]/Salgsomsetning_1[[#This Row],[Forrige periode]])-1))),\"-\")","v":{"v":0,"d":"0.00%"}},{"$f":"IFERROR(IF(Salgsomsetning_1[[#This Row],[Budsjett]]=Salgsomsetning_1[[#This Row],[Gjeldende periode]],0,IF(Salgsomsetning_1[[#This Row],[Gjeldende periode]]>Salgsomsetning_1[[#This Row],[Budsjett]],ABS((Salgsomsetning_1[[#This Row],[Gjeldende periode]]/Salgsomsetning_1[[#This Row],[Budsjett]])-1),IF(AND(Salgsomsetning_1[[#This Row],[Gjeldende periode]]<Salgsomsetning_1[[#This Row],[Budsjett]],Salgsomsetning_1[[#This Row],[Budsjett]]<0),-((Salgsomsetning_1[[#This Row],[Gjeldende periode]]/Salgsomsetning_1[[#This Row],[Budsjett]])-1),(Salgsomsetning_1[[#This Row],[Gjeldende periode]]/Salgsomsetning_1[[#This Row],[Budsjett]])-1))),\"-\")","v":{"v":0,"d":"0.00%"}}]
[null,"Kostnad for salg","Produkt/tjeneste 3",{"$nulls":3},{"$f":"IFERROR(IF(Salgsomsetning_1[[#Totals],[Gjeldende periode]]=0,\"-\",Salgsomsetning_1[[#This Row],[Gjeldende periode]]/Salgsomsetning),\"-\")","v":"-"},{"$f":"IFERROR(IF(Salgsomsetning_1[[#This Row],[Forrige periode]]=Salgsomsetning_1[[#This Row],[Gjeldende periode]],0,IF(Salgsomsetning_1[[#This Row],[Gjeldende periode]]>Salgsomsetning_1[[#This Row],[Forrige periode]],ABS((Salgsomsetning_1[[#This Row],[Gjeldende periode]]/Salgsomsetning_1[[#This Row],[Forrige periode]])-1),IF(AND(Salgsomsetning_1[[#This Row],[Gjeldende periode]]<Salgsomsetning_1[[#This Row],[Forrige periode]],Salgsomsetning_1[[#This Row],[Forrige periode]]<0),-((Salgsomsetning_1[[#This Row],[Gjeldende periode]]/Salgsomsetning_1[[#This Row],[Forrige periode]])-1),(Salgsomsetning_1[[#This Row],[Gjeldende periode]]/Salgsomsetning_1[[#This Row],[Forrige periode]])-1))),\"-\")","v":{"v":0,"d":"0.00%"}},{"$f":"IFERROR(IF(Salgsomsetning_1[[#This Row],[Budsjett]]=Salgsomsetning_1[[#This Row],[Gjeldende periode]],0,IF(Salgsomsetning_1[[#This Row],[Gjeldende periode]]>Salgsomsetning_1[[#This Row],[Budsjett]],ABS((Salgsomsetning_1[[#This Row],[Gjeldende periode]]/Salgsomsetning_1[[#This Row],[Budsjett]])-1),IF(AND(Salgsomsetning_1[[#This Row],[Gjeldende periode]]<Salgsomsetning_1[[#This Row],[Budsjett]],Salgsomsetning_1[[#This Row],[Budsjett]]<0),-((Salgsomsetning_1[[#This Row],[Gjeldende periode]]/Salgsomsetning_1[[#This Row],[Budsjett]])-1),(Salgsomsetning_1[[#This Row],[Gjeldende periode]]/Salgsomsetning_1[[#This Row],[Budsjett]])-1))),\"-\")","v":{"v":0,"d":"0.00%"}}]
[null,"Kostnad for salg","Produkt/tjeneste 4",{"$nulls":3},{"$f":"IFERROR(IF(Salgsomsetning_1[[#Totals],[Gjeldende periode]]=0,\"-\",Salgsomsetning_1[[#This Row],[Gjeldende periode]]/Salgsomsetning),\"-\")","v":"-"},{"$f":"IFERROR(IF(Salgsomsetning_1[[#This Row],[Forrige periode]]=Salgsomsetning_1[[#This Row],[Gjeldende periode]],0,IF(Salgsomsetning_1[[#This Row],[Gjeldende periode]]>Salgsomsetning_1[[#This Row],[Forrige periode]],ABS((Salgsomsetning_1[[#This Row],[Gjeldende periode]]/Salgsomsetning_1[[#This Row],[Forrige periode]])-1),IF(AND(Salgsomsetning_1[[#This Row],[Gjeldende periode]]<Salgsomsetning_1[[#This Row],[Forrige periode]],Salgsomsetning_1[[#This Row],[Forrige periode]]<0),-((Salgsomsetning_1[[#This Row],[Gjeldende periode]]/Salgsomsetning_1[[#This Row],[Forrige periode]])-1),(Salgsomsetning_1[[#This Row],[Gjeldende periode]]/Salgsomsetning_1[[#This Row],[Forrige periode]])-1))),\"-\")","v":{"v":0,"d":"0.00%"}},{"$f":"IFERROR(IF(Salgsomsetning_1[[#This Row],[Budsjett]]=Salgsomsetning_1[[#This Row],[Gjeldende periode]],0,IF(Salgsomsetning_1[[#This Row],[Gjeldende periode]]>Salgsomsetning_1[[#This Row],[Budsjett]],ABS((Salgsomsetning_1[[#This Row],[Gjeldende periode]]/Salgsomsetning_1[[#This Row],[Budsjett]])-1),IF(AND(Salgsomsetning_1[[#This Row],[Gjeldende periode]]<Salgsomsetning_1[[#This Row],[Budsjett]],Salgsomsetning_1[[#This Row],[Budsjett]]<0),-((Salgsomsetning_1[[#This Row],[Gjeldende periode]]/Salgsomsetning_1[[#This Row],[Budsjett]])-1),(Salgsomsetning_1[[#This Row],[Gjeldende periode]]/Salgsomsetning_1[[#This Row],[Budsjett]])-1))),\"-\")","v":{"v":0,"d":"0.00%"}}]
[null,"Total salgsomsetning",null,{"$f":"SUBTOTAL(109,Salgsomsetning_1[Forrige periode])","v":0},{"$f":"SUBTOTAL(109,Salgsomsetning_1[Budsjett])","v":0},{"$f":"SUBTOTAL(109,Salgsomsetning_1[Gjeldende periode])","v":0},{"$f":"SUBTOTAL(109,Salgsomsetning_1[Gjeldende periode som % av salg])","v":{"v":0,"d":"0.00%"}},{"$f":"SUBTOTAL(109,Salgsomsetning_1[% endring fra forrige periode])","v":{"v":0,"d":"0.00%"}},{"$f":"SUBTOTAL(109,Salgsomsetning_1[% endring fra budsjett])","v":{"v":0,"d":"0.00%"}}]

{"sheet":"Inntekter","index":2,"n_rows":7,"n_cols":9,"rows_kept":7,"merged":[[0,7,2,8]]}
[null,{"$f":"Arbeidsbok_Tittel","v":"Resultatregnskap"}]
[null,{"$f":"Firmanavn","v":"Firmanavn"},"Angitt i 000"]
[null,"Inntekter",{"$f":"IFERROR(Inntekt[[#Totals],[Gjeldende periode]],\"-\")","v":0}]
[null,"Inntektstype","Beskrivelse","Forrige periode","Budsjett","Gjeldende periode","Gjeldende periode som % av salg","% endring fra forrige periode","% endring fra budsjett"]
[null,"Inntekter","Annen inntekt",{"$nulls":3},{"$f":"IFERROR(IF(Salgsomsetning=0,\"-\",Inntekt[[#This Row],[Gjeldende periode]]/Salgsomsetning),\"-\")","v":"-"},{"$f":"IFERROR(IF(Inntekt[[#This Row],[Forrige periode]]=Inntekt[[#This Row],[Gjeldende periode]],0,IF(Inntekt[[#This Row],[Gjeldende periode]]>Inntekt[[#This Row],[Forrige periode]],ABS((Inntekt[[#This Row],[Gjeldende periode]]/Inntekt[[#This Row],[Forrige periode]])-1),IF(AND(Inntekt[[#This Row],[Gjeldende periode]]<Inntekt[[#This Row],[Forrige periode]],Inntekt[[#This Row],[Forrige periode]]<0),-((Inntekt[[#This Row],[Gjeldende periode]]/Inntekt[[#This Row],[Forrige periode]])-1),(Inntekt[[#This Row],[Gjeldende periode]]/Inntekt[[#This Row],[Forrige periode]])-1))),\"-\")","v":{"v":0,"d":"0.00%"}},{"$f":"IFERROR(IF(Inntekt[[#This Row],[Budsjett]]=Inntekt[[#This Row],[Gjeldende periode]],0,IF(Inntekt[[#This Row],[Gjeldende periode]]>Inntekt[[#This Row],[Budsjett]],ABS((Inntekt[[#This Row],[Gjeldende periode]]/Inntekt[[#This Row],[Budsjett]])-1),IF(AND(Inntekt[[#This Row],[Gjeldende periode]]<Inntekt[[#This Row],[Budsjett]],Inntekt[[#This Row],[Budsjett]]<0),-((Inntekt[[#This Row],[Gjeldende periode]]/Inntekt[[#This Row],[Budsjett]])-1),(Inntekt[[#This Row],[Gjeldende periode]]/Inntekt[[#This Row],[Budsjett]])-1))),\"-\")","v":{"v":0,"d":"0.00%"}}]
[{"$nulls":6},{"$f":"IFERROR(IF(Salgsomsetning=0,\"-\",Inntekt[[#This Row],[Gjeldende periode]]/Salgsomsetning),\"-\")","v":"-"},{"$f":"IFERROR(IF(Inntekt[[#This Row],[Forrige periode]]=Inntekt[[#This Row],[Gjeldende periode]],0,IF(Inntekt[[#This Row],[Gjeldende periode]]>Inntekt[[#This Row],[Forrige periode]],ABS((Inntekt[[#This Row],[Gjeldende periode]]/Inntekt[[#This Row],[Forrige periode]])-1),IF(AND(Inntekt[[#This Row],[Gjeldende periode]]<Inntekt[[#This Row],[Forrige periode]],Inntekt[[#This Row],[Forrige periode]]<0),-((Inntekt[[#This Row],[Gjeldende periode]]/Inntekt[[#This Row],[Forrige periode]])-1),(Inntekt[[#This Row],[Gjeldende periode]]/Inntekt[[#This Row],[Forrige periode]])-1))),\"-\")","v":{"v":0,"d":"0.00%"}},{"$f":"IFERROR(IF(Inntekt[[#This Row],[Budsjett]]=Inntekt[[#This Row],[Gjeldende periode]],0,IF(Inntekt[[#This Row],[Gjeldende periode]]>Inntekt[[#This Row],[Budsjett]],ABS((Inntekt[[#This Row],[Gjeldende periode]]/Inntekt[[#This Row],[Budsjett]])-1),IF(AND(Inntekt[[#This Row],[Gjeldende periode]]<Inntekt[[#This Row],[Budsjett]],Inntekt[[#This Row],[Budsjett]]<0),-((Inntekt[[#This Row],[Gjeldende periode]]/Inntekt[[#This Row],[Budsjett]])-1),(Inntekt[[#This Row],[Gjeldende periode]]/Inntekt[[#This Row],[Budsjett]])-1))),\"-\")","v":{"v":0,"d":"0.00%"}}]
[null,"Totale salgsinntekter",null,{"$f":"SUBTOTAL(109,Inntekt[Forrige periode])","v":0},{"$f":"SUBTOTAL(109,Inntekt[Budsjett])","v":0},{"$f":"SUBTOTAL(109,Inntekt[Gjeldende periode])","v":0},{"$f":"SUBTOTAL(109,Inntekt[Gjeldende periode som % av salg])","v":{"v":0,"d":"0.00%"}},{"$f":"SUBTOTAL(109,Inntekt[% endring fra forrige periode])","v":{"v":0,"d":"0.00%"}},{"$f":"SUBTOTAL(109,Inntekt[% endring fra budsjett])","v":{"v":0,"d":"0.00%"}}]

{"sheet":"Utgifter","index":3,"n_rows":25,"n_cols":9,"rows_kept":25,"merged":[[0,7,2,8]]}
[null,{"$f":"Arbeidsbok_Tittel","v":"Resultatregnskap"}]
[null,{"$f":"Firmanavn","v":"Firmanavn"},"Angitt i 000"]
[null,"Driftskostnader",{"$f":"IFERROR(Driftsutgifter[[#Totals],[Gjeldende periode]],\"-\")","v":0}]
[null,"Utgiftstype","Beskrivelse","Forrige periode","Budsjett","Gjeldende periode","Gjeldende periode som % av salg","% endring fra forrige periode","% endring fra budsjett"]
[null,"Salg og markedsføring","Annonsering",{"$nulls":3},{"$f":"IFERROR(IF(Salgsomsetning=0,\"-\",Driftsutgifter[[#This Row],[Gjeldende periode]]/Salgsomsetning),\"-\")","v":"-"},{"$f":"IFERROR(IF(Driftsutgifter[[#This Row],[Forrige periode]]=Driftsutgifter[[#This Row],[Gjeldende periode]],0,IF(Driftsutgifter[[#This Row],[Gjeldende periode]]>Driftsutgifter[[#This Row],[Forrige periode]],ABS((Driftsutgifter[[#This Row],[Gjeldende periode]]/Driftsutgifter[[#This Row],[Forrige periode]])-1),IF(AND(Driftsutgifter[[#This Row],[Gjeldende periode]]<Driftsutgifter[[#This Row],[Forrige periode]],Driftsutgifter[[#This Row],[Forrige periode]]<0),-((Driftsutgifter[[#This Row],[Gjeldende periode]]/Driftsutgifter[[#This Row],[Forrige periode]])-1),(Driftsutgifter[[#This Row],[Gjeldende periode]]/Driftsutgifter[[#This Row],[Forrige periode]])-1))),\"-\")","v":{"v":0,"d":"0.00%"}},{"$f":"IFERROR(IF(Driftsutgifter[[#This Row],[Budsjett]]=Driftsutgifter[[#This Row],[Gjeldende periode]],0,IF(Driftsutgifter[[#This Row],[Gjeldende periode]]>Driftsutgifter[[#This Row],[Budsjett]],ABS((Driftsutgifter[[#This Row],[Gjeldende periode]]/Driftsutgifter[[#This Row],[Budsjett]])-1),IF(AND(Driftsutgifter[[#This Row],[Gjeldende periode]]<Driftsutgifter[[#This Row],[Budsjett]],Driftsutgifter[[#This Row],[Budsjett]]<0),-((Driftsutgifter[[#This Row],[Gjeldende periode]]/Driftsutgifter[[#This Row],[Budsjett]])-1),(Driftsutgifter[[#This Row],[Gjeldende periode]]/Driftsutgifter[[#This Row],[Budsjett]])-1))),\"-\")","v":{"v":0,"d":"0.00%"}}]
[null,"Salg og markedsføring","Direkte markedsføring",{"$nulls":3},{"$f":"IFERROR(IF(Salgsomsetning=0,\"-\",Driftsutgifter[[#This Row],[Gjeldende periode]]/Salgsomsetning),\"-\")","v":"-"},{"$f":"IFERROR(IF(Driftsutgifter[[#This Row],[Forrige periode]]=Driftsutgifter[[#This Row],[Gjeldende periode]],0,IF(Driftsutgifter[[#This Row],[Gjeldende periode]]>Driftsutgifter[[#This Row],[Forrige periode]],ABS((Driftsutgifter[[#This Row],[Gjeldende periode]]/Driftsutgifter[[#This Row],[Forrige periode]])-1),IF(AND(Driftsutgifter[[#This Row],[Gjeldende periode]]<Driftsutgifter[[#This Row],[Forrige periode]],Driftsutgifter[[#This Row],[Forrige periode]]<0),-((Driftsutgifter[[#This Row],[Gjeldende periode]]/Driftsutgifter[[#This Row],[Forrige periode]])-1),(Driftsutgifter[[#This Row],[Gjeldende periode]]/Driftsutgifter[[#This Row],[Forrige periode]])-1))),\"-\")","v":{"v":0,"d":"0.00%"}},{"$f":"IFERROR(IF(Driftsutgifter[[#This Row],[Budsjett]]=Driftsutgifter[[#This Row],[Gjeldende periode]],0,IF(Driftsutgifter[[#This Row],[Gjeldende periode]]>Driftsutgifter[[#This Row],[Budsjett]],ABS((Driftsutgifter[[#This Row],[Gjeldende periode]]/Driftsutgifter[[#This Row],[Budsjett]])-1),IF(AND(Driftsutgifter[[#This Row],[Gjeldende periode]]<Driftsutgifter[[#This Row],[Budsjett]],Driftsutgifter[[#This Row],[Budsjett]]<0),-((Driftsutgifter[[#This Row],[Gjeldende periode]]/Driftsutgifter[[#This Row],[Budsjett]])-1),(Driftsutgifter[[#This Row],[Gjeldende periode]]/Driftsutgifter[[#This Row],[Budsjett]])-1))),\"-\")","v":{"v":0,"d":"0.00%"}}]
[null,"Salg og markedsføring","Andre utgifter (spesifiser)",{"$nulls":3},{"$f":"IFERROR(IF(Salgsomsetning=0,\"-\",Driftsutgifter[[#This Row],[Gjeldende periode]]/Salgsomsetning),\"-\")","v":"-"},{"$f":"IFERROR(IF(Driftsutgifter[[#This Row],[Forrige periode]]=Driftsutgifter[[#This Row],[Gjeldende periode]],0,IF(Driftsutgifter[[#This Row],[Gjeldende periode]]>Driftsutgifter[[#This Row],[Forrige periode]],ABS((Driftsutgifter[[#This Row],[Gjeldende periode]]/Driftsutgifter[[#This Row],[Forrige periode]])-1),IF(AND(Driftsutgifter[[#This Row],[Gjeldende periode]]<Driftsutgifter[[#This Row],[Forrige periode]],Driftsutgifter[[#This Row],[Forrige periode]]<0),-((Driftsutgifter[[#This Row],[Gjeldende periode]]/Driftsutgifter[[#This Row],[Forrige periode]])-1),(Driftsutgifter[[#This Row],[Gjeldende periode]]/Driftsutgifter[[#This Row],[Forrige periode]])-1))),\"-\")","v":{"v":0,"d":"0.00%"}},{"$f":"IFERROR(IF(Driftsutgifter[[#This Row],[Budsjett]]=Driftsutgifter[[#This Row],[Gjeldende periode]],0,IF(Driftsutgifter[[#This Row],[Gjeldende periode]]>Driftsutgifter[[#This Row],[Budsjett]],ABS((Driftsutgifter[[#This Row],[Gjeldende periode]]/Driftsutgifter[[#This Row],[Budsjett]])-1),IF(AND(Driftsutgifter[[#This Row],[Gjeldende periode]]<Driftsutgifter[[#This Row],[Budsjett]],Driftsutgifter[[#This Row],[Budsjett]]<0),-((Driftsutgifter[[#This Row],[Gjeldende periode]]/Driftsutgifter[[#This Row],[Budsjett]])-1),(Driftsutgifter[[#This Row],[Gjeldende periode]]/Driftsutgifter[[#This Row],[Budsjett]])-1))),\"-\")","v":{"v":0,"d":"0.00%"}}]
[null,"Salg og markedsføring","Andre utgifter (spesifiser)",{"$nulls":3},{"$f":"IFERROR(IF(Salgsomsetning=0,\"-\",Driftsutgifter[[#This Row],[Gjeldende periode]]/Salgsomsetning),\"-\")","v":"-"},{"$f":"IFERROR(IF(Driftsutgifter[[#This Row],[Forrige periode]]=Driftsutgifter[[#This Row],[Gjeldende periode]],0,IF(Driftsutgifter[[#This Row],[Gjeldende periode]]>Driftsutgifter[[#This Row],[Forrige periode]],ABS((Driftsutgifter[[#This Row],[Gjeldende periode]]/Driftsutgifter[[#This Row],[Forrige periode]])-1),IF(AND(Driftsutgifter[[#This Row],[Gjeldende periode]]<Driftsutgifter[[#This Row],[Forrige periode]],Driftsutgifter[[#This Row],[Forrige periode]]<0),-((Driftsutgifter[[#This Row],[Gjeldende periode]]/Driftsutgifter[[#This Row],[Forrige periode]])-1),(Driftsutgifter[[#This Row],[Gjeldende periode]]/Driftsutgifter[[#This Row],[Forrige periode]])-1))),\"-\")","v":{"v":0,"d":"0.00%"}},{"$f":"IFERROR(IF(Driftsutgifter[[#This Row],[Budsjett]]=Driftsutgifter[[#This Row],[Gjeldende periode]],0,IF(Driftsutgifter[[#This Row],[Gjeldende periode]]>Driftsutgifter[[#This Row],[Budsjett]],ABS((Driftsutgifter[[#This Row],[Gjeldende periode]]/Driftsutgifter[[#This Row],[Budsjett]])-1),IF(AND(Driftsutgifter[[#This Row],[Gjeldende periode]]<Driftsutgifter[[#This Row],[Budsjett]],Driftsutgifter[[#This Row],[Budsjett]]<0),-((Driftsutgifter[[#This Row],[Gjeldende periode]]/Driftsutgifter[[#This Row],[Budsjett]])-1),(Driftsutgifter[[#This Row],[Gjeldende periode]]/Driftsutgifter[[#This Row],[Budsjett]])-1))),\"-\")","v":{"v":0,"d":"0.00%"}}]
[null,"Forskning og utvikling","Teknologilisenser",{"$nulls":3},{"$f":"IFERROR(IF(Salgsomsetning=0,\"-\",Driftsutgifter[[#This Row],[Gjeldende periode]]/Salgsomsetning),\"-\")","v":"-"},{"$f":"IFERROR(IF(Driftsutgifter[[#This Row],[Forrige periode]]=Driftsutgifter[[#This Row],[Gjeldende periode]],0,IF(Driftsutgifter[[#This Row],[Gjeldende periode]]>Driftsutgifter[[#This Row],[Forrige periode]],ABS((Driftsutgifter[[#This Row],[Gjeldende periode]]/Driftsutgifter[[#This Row],[Forrige periode]])-1),IF(AND(Driftsutgifter[[#This Row],[Gjeldende periode]]<Driftsutgifter[[#This Row],[Forrige periode]],Driftsutgifter[[#This Row],[Forrige periode]]<0),-((Driftsutgifter[[#This Row],[Gjeldende periode]]/Driftsutgifter[[#This Row],[Forrige periode]])-1),(Driftsutgifter[[#This Row],[Gjeldende periode]]/Driftsutgifter[[#This Row],[Forrige periode]])-1))),\"-\")","v":{"v":0,"d":"0.00%"}},{"$f":"IFERROR(IF(Driftsutgifter[[#This Row],[Budsjett]]=Driftsutgifter[[#This Row],[Gjeldende periode]],0,IF(Driftsutgifter[[#This Row],[Gjeldende periode]]>Driftsutgifter[[#This Row],[Budsjett]],ABS((Driftsutgifter[[#This Row],[Gjeldende periode]]/Driftsutgifter[[#This Row],[Budsjett]])-1),IF(AND(Driftsutgifter[[#This Row],[Gjeldende periode]]<Driftsutgifter[[#This Row],[Budsjett]],Driftsutgifter[[#This Row],[Budsjett]]<0),-((Driftsutgifter[[#This Row],[Gjeldende periode]]/Driftsutgifter[[#This Row],[Budsjett]])-1),(Driftsutgifter[[#This Row],[Gjeldende periode]]/Driftsutgifter[[#This Row],[Budsjett]])-1))),\"-\")","v":{"v":0,"d":"0.00%"}}]
[null,"Forskning og utvikling","Patenter ",{"$nulls":3},{"$f":"IFERROR(IF(Salgsomsetning=0,\"-\",Driftsutgifter[[#This Row],[Gjeldende periode]]/Salgsomsetning),\"-\")","v":"-"},{"$f":"IFERROR(IF(Driftsutgifter[[#This Row],[Forrige periode]]=Driftsutgifter[[#This Row],[Gjeldende periode]],0,IF(Driftsutgifter[[#This Row],[Gjeldende periode]]>Driftsutgifter[[#This Row],[Forrige periode]],ABS((Driftsutgifter[[#This Row],[Gjeldende periode]]/Driftsutgifter[[#This Row],[Forrige periode]])-1),IF(AND(Driftsutgifter[[#This Row],[Gjeldende periode]]<Driftsutgifter[[#This Row],[Forrige periode]],Driftsutgifter[[#This Row],[Forrige periode]]<0),-((Driftsutgifter[[#This Row],[Gjeldende periode]]/Driftsutgifter[[#This Row],[Forrige periode]])-1),(Driftsutgifter[[#This Row],[Gjeldende periode]]/Driftsutgifter[[#This Row],[Forrige periode]])-1))),\"-\")","v":{"v":0,"d":"0.00%"}},{"$f":"IFERROR(IF(Driftsutgifter[[#This Row],[Budsjett]]=Driftsutgifter[[#This Row],[Gjeldende periode]],0,IF(Driftsutgifter[[#This Row],[Gjeldende periode]]>Driftsutgifter[[#This Row],[Budsjett]],ABS((Driftsutgifter[[#This Row],[Gjeldende periode]]/Driftsutgifter[[#This Row],[Budsjett]])-1),IF(AND(Driftsutgifter[[#This Row],[Gjeldende periode]]<Driftsutgifter[[#This Row],[Budsjett]],Driftsutgifter[[#This Row],[Budsjett]]<0),-((Driftsutgifter[[#This Row],[Gjeldende periode]]/Driftsutgifter[[#This Row],[Budsjett]])-1),(Driftsutgifter[[#This Row],[Gjeldende periode]]/Driftsutgifter[[#This Row],[Budsjett]])-1))),\"-\")","v":{"v":0,"d":"0.00%"}}]
[null,"Forskning og utvikling","Andre utgifter (spesifiser)",{"$nulls":3},{"$f":"IFERROR(IF(Salgsomsetning=0,\"-\",Driftsutgifter[[#This Row],[Gjeldende periode]]/Salgsomsetning),\"-\")","v":"-"},{"$f":"IFERROR(IF(Driftsutgifter[[#This Row],[Forrige periode]]=Driftsutgifter[[#This Row],[Gjeldende periode]],0,IF(Driftsutgifter[[#This Row],[Gjeldende periode]]>Driftsutgifter[[#This Row],[Forrige periode]],ABS((Driftsutgifter[[#This Row],[Gjeldende periode]]/Driftsutgifter[[#This Row],[Forrige periode]])-1),IF(AND(Driftsutgifter[[#This Row],[Gjeldende periode]]<Driftsutgifter[[#This Row],[Forrige periode]],Driftsutgifter[[#This Row],[Forrige periode]]<0),-((Driftsutgifter[[#This Row],[Gjeldende periode]]/Driftsutgifter[[#This Row],[Forrige periode]])-1),(Driftsutgifter[[#This Row],[Gjeldende periode]]/Driftsutgifter[[#This Row],[Forrige periode]])-1))),\"-\")","v":{"v":0,"d":"0.00%"}},{"$f":"IFERROR(IF(Driftsutgifter[[#This Row],[Budsjett]]=Driftsutgifter[[#This Row],[Gjeldende periode]],0,IF(Driftsutgifter[[#This Row],[Gjeldende periode]]>Driftsutgifter[[#This Row],[Budsjett]],ABS((Driftsutgifter[[#This Row],[Gjeldende periode]]/Driftsutgifter[[#This Row],[Budsjett]])-1),IF(AND(Driftsutgifter[[#This Row],[Gjeldende periode]]<Driftsutgifter[[#This Row],[Budsjett]],Driftsutgifter[[#This Row],[Budsjett]]<0),-((Driftsutgifter[[#This Row],[Gjeldende periode]]/Driftsutgifter[[#This Row],[Budsjett]])-1),(Driftsutgifter[[#This Row],[Gjeldende periode]]/Driftsutgifter[[#This Row],[Budsjett]])-1))),\"-\")","v":{"v":0,"d":"0.00%"}}]
[null,"Forskning og utvikling","Andre utgifter (spesifiser)",{"$nulls":3},{"$f":"IFERROR(IF(Salgsomsetning=0,\"-\",Driftsutgifter[[#This Row],[Gjeldende periode]]/Salgsomsetning),\"-\")","v":"-"},{"$f":"IFERROR(IF(Driftsutgifter[[#This Row],[Forrige periode]]=Driftsutgifter[[#This Row],[Gjeldende periode]],0,IF(Driftsutgifter[[#This Row],[Gjeldende periode]]>Driftsutgifter[[#This Row],[Forrige periode]],ABS((Driftsutgifter[[#This Row],[Gjeldende periode]]/Driftsutgifter[[#This Row],[Forrige periode]])-1),IF(AND(Driftsutgifter[[#This Row],[Gjeldende periode]]<Driftsutgifter[[#This Row],[Forrige periode]],Driftsutgifter[[#This Row],[Forrige periode]]<0),-((Driftsutgifter[[#This Row],[Gjeldende periode]]/Driftsutgifter[[#This Row],[Forrige periode]])-1),(Driftsutgifter[[#This Row],[Gjeldende periode]]/Driftsutgifter[[#This Row],[Forrige periode]])-1))),\"-\")","v":{"v":0,"d":"0.00%"}},{"$f":"IFERROR(IF(Driftsutgifter[[#This Row],[Budsjett]]=Driftsutgifter[[#This Row],[Gjeldende periode]],0,IF(Driftsutgifter[[#This Row],[Gjeldende periode]]>Driftsutgifter[[#This Row],[Budsjett]],ABS((Driftsutgifter[[#This Row],[Gjeldende periode]]/Driftsutgifter[[#This Row],[Budsjett]])-1),IF(AND(Driftsutgifter[[#This Row],[Gjeldende periode]]<Driftsutgifter[[#This Row],[Budsjett]],Driftsutgifter[[#This Row],[Budsjett]]<0),-((Driftsutgifter[[#This Row],[Gjeldende periode]]/Driftsutgifter[[#This Row],[Budsjett]])-1),(Driftsutgifter[[#This Row],[Gjeldende periode]]/Driftsutgifter[[#This Row],[Budsjett]])-1))),\"-\")","v":{"v":0,"d":"0.00%"}}]
[null,"Generell og administrativ","Lønn",{"$nulls":3},{"$f":"IFERROR(IF(Salgsomsetning=0,\"-\",Driftsutgifter[[#This Row],[Gjeldende periode]]/Salgsomsetning),\"-\")","v":"-"},{"$f":"IFERROR(IF(Driftsutgifter[[#This Row],[Forrige periode]]=Driftsutgifter[[#This Row],[Gjeldende periode]],0,IF(Driftsutgifter[[#This Row],[Gjeldende periode]]>Driftsutgifter[[#This Row],[Forrige periode]],ABS((Driftsutgifter[[#This Row],[Gjeldende periode]]/Driftsutgifter[[#This Row],[Forrige periode]])-1),IF(AND(Driftsutgifter[[#This Row],[Gjeldende periode]]<Driftsutgifter[[#This Row],[Forrige periode]],Driftsutgifter[[#This Row],[Forrige periode]]<0),-((Driftsutgifter[[#This Row],[Gjeldende periode]]/Driftsutgifter[[#This Row],[Forrige periode]])-1),(Driftsutgifter[[#This Row],[Gjeldende periode]]/Driftsutgifter[[#This Row],[Forrige periode]])-1))),\"-\")","v":{"v":0,"d":"0.00%"}},{"$f":"IFERROR(IF(Driftsutgifter[[#This Row],[Budsjett]]=Driftsutgifter[[#This Row],[Gjeldende periode]],0,IF(Driftsutgifter[[#This Row],[Gjeldende periode]]>Driftsutgifter[[#This Row],[Budsjett]],ABS((Driftsutgifter[[#This Row],[Gjeldende periode]]/Driftsutgifter[[#This Row],[Budsjett]])-1),IF(AND(Driftsutgifter[[#This Row],[Gjeldende periode]]<Driftsutgifter[[#This Row],[Budsjett]],Driftsutgifter[[#This Row],[Budsjett]]<0),-((Driftsutgifter[[#This Row],[Gjeldende periode]]/Driftsutgifter[[#This Row],[Budsjett]])-1),(Driftsutgifter[[#This Row],[Gjeldende periode]]/Driftsutgifter[[#This Row],[Budsjett]])-1))),\"-\")","v":{"v":0,"d":"0.00%"}}]
[null,"Generell og administrativ","Eksterne tjenester",{"$nulls":3},{"$f":"IFERROR(IF(Salgsomsetning=0,\"-\",Driftsutgifter[[#This Row],[Gjeldende periode]]/Salgsomsetning),\"-\")","v":"-"},{"$f":"IFERROR(IF(Driftsutgifter[[#This Row],[Forrige periode]]=Driftsutgifter[[#This Row],[Gjeldende periode]],0,IF(Driftsutgifter[[#This Row],[Gjeldende periode]]>Driftsutgifter[[#This Row],[Forrige periode]],ABS((Driftsutgifter[[#This Row],[Gjeldende periode]]/Driftsutgifter[[#This Row],[Forrige periode]])-1),IF(AND(Driftsutgifter[[#This Row],[Gjeldende periode]]<Driftsutgifter[[#This Row],[Forrige periode]],Driftsutgifter[[#This Row],[Forrige periode]]<0),-((Driftsutgifter[[#This Row],[Gjeldende periode]]/Driftsutgifter[[#This Row],[Forrige periode]])-1),(Driftsutgifter[[#This Row],[Gjeldende periode]]/Driftsutgifter[[#This Row],[Forrige periode]])-1))),\"-\")","v":{"v":0,"d":"0.00%"}},{"$f":"IFERROR(IF(Driftsutgifter[[#This Row],[Budsjett]]=Driftsutgifter[[#This Row],[Gjeldende periode]],0,IF(Driftsutgifter[[#This Row],[Gjeldende periode]]>Driftsutgifter[[#This Row],[Budsjett]],ABS((Driftsutgifter[[#This Row],[Gjeldende periode]]/Driftsutgifter[[#This Row],[Budsjett]])-1),IF(AND(Driftsutgifter[[#This Row],[Gjeldende periode]]<Driftsutgifter[[#This Row],[Budsjett]],Driftsutgifter[[#This Row],[Budsjett]]<0),-((Driftsutgifter[[#This Row],[Gjeldende periode]]/Driftsutgifter[[#This Row],[Budsjett]])-1),(Driftsutgifter[[#This Row],[Gjeldende periode]]/Driftsutgifter[[#This Row],[Budsjett]])-1))),\"-\")","v":{"v":0,"d":"0.00%"}}]
[null,"Generell og administrativ","Utstyr",{"$nulls":3},{"$f":"IFERROR(IF(Salgsomsetning=0,\"-\",Driftsutgifter[[#This Row],[Gjeldende periode]]/Salgsomsetning),\"-\")","v":"-"},{"$f":"IFERROR(IF(Driftsutgifter[[#This Row],[Forrige periode]]=Driftsutgifter[[#This Row],[Gjeldende periode]],0,IF(Driftsutgifter[[#This Row],[Gjeldende periode]]>Driftsutgifter[[#This Row],[Forrige periode]],ABS((Driftsutgifter[[#This Row],[Gjeldende periode]]/Driftsutgifter[[#This Row],[Forrige periode]])-1),IF(AND(Driftsutgifter[[#This Row],[Gjeldende periode]]<Driftsutgifter[[#This Row],[Forrige periode]],Driftsutgifter[[#This Row],[Forrige periode]]<0),-((Driftsutgifter[[#This Row],[Gjeldende periode]]/Driftsutgifter[[#This Row],[Forrige periode]])-1),(Driftsutgifter[[#This Row],[Gjeldende periode]]/Driftsutgifter[[#This Row],[Forrige periode]])-1))),\"-\")","v":{"v":0,"d":"0.00%"}},{"$f":"IFERROR(IF(Driftsutgifter[[#This Row],[Budsjett]]=Driftsutgifter[[#This Row],[Gjeldende periode]],0,IF(Driftsutgifter[[#This Row],[Gjeldende periode]]>Driftsutgifter[[#This Row],[Budsjett]],ABS((Driftsutgifter[[#This Row],[Gjeldende periode]]/Driftsutgifter[[#This Row],[Budsjett]])-1),IF(AND(Driftsutgifter[[#This Row],[Gjeldende periode]]<Driftsutgifter[[#This Row],[Budsjett]],Driftsutgifter[[#This Row],[Budsjett]]<0),-((Driftsutgifter[[#This Row],[Gjeldende periode]]/Driftsutgifter[[#This Row],[Budsjett]])-1),(Driftsutgifter[[#This Row],[Gjeldende periode]]/Driftsutgifter[[#This Row],[Budsjett]])-1))),\"-\")","v":{"v":0,"d":"0.00%"}}]
[null,"Generell og administrativ","Måltider og underholdning",{"$nulls":3},{"$f":"IFERROR(IF(Salgsomsetning=0,\"-\",Driftsutgifter[[#This Row],[Gjeldende periode]]/Salgsomsetning),\"-\")","v":"-"},{"$f":"IFERROR(IF(Driftsutgifter[[#This Row],[Forrige periode]]=Driftsutgifter[[#This Row],[Gjeldende periode]],0,IF(Driftsutgifter[[#This Row],[Gjeldende periode]]>Driftsutgifter[[#This Row],[Forrige periode]],ABS((Driftsutgifter[[#This Row],[Gjeldende periode]]/Driftsutgifter[[#This Row],[Forrige periode]])-1),IF(AND(Driftsutgifter[[#This Row],[Gjeldende periode]]<Driftsutgifter[[#This Row],[Forrige periode]],Driftsutgifter[[#This Row],[Forrige periode]]<0),-((Driftsutgifter[[#This Row],[Gjeldende periode]]/Driftsutgifter[[#This Row],[Forrige periode]])-1),(Driftsutgifter[[#This Row],[Gjeldende periode]]/Driftsutgifter[[#This Row],[Forrige periode]])-1))),\"-\")","v":{"v":0,"d":"0.00%"}},{"$f":"IFERROR(IF(Driftsutgifter[[#This Row],[Budsjett]]=Driftsutgifter[[#This Row],[Gjeldende periode]],0,IF(Driftsutgifter[[#This Row],[Gjeldende periode]]>Driftsutgifter[[#This Row],[Budsjett]],ABS((Driftsutgifter[[#This Row],[Gjeldende periode]]/Driftsutgifter[[#This Row],[Budsjett]])-1),IF(AND(Driftsutgifter[[#This Row],[Gjeldende periode]]<Driftsutgifter[[#This Row],[Budsjett]],Driftsutgifter[[#This Row],[Budsjett]]<0),-((Driftsutgifter[[#This Row],[Gjeldende periode]]/Driftsutgifter[[#This Row],[Budsjett]])-1),(Driftsutgifter[[#This Row],[Gjeldende periode]]/Driftsutgifter[[#This Row],[Budsjett]])-1))),\"-\")","v":{"v":0,"d":"0.00%"}}]
[null,"Generell og administrativ","Leie",{"$nulls":3},{"$f":"IFERROR(IF(Salgsomsetning=0,\"-\",Driftsutgifter[[#This Row],[Gjeldende periode]]/Salgsomsetning),\"-\")","v":"-"},{"$f":"IFERROR(IF(Driftsutgifter[[#This Row],[Forrige periode]]=Driftsutgifter[[#This Row],[Gjeldende periode]],0,IF(Driftsutgifter[[#This Row],[Gjeldende periode]]>Driftsutgifter[[#This Row],[Forrige periode]],ABS((Driftsutgifter[[#This Row],[Gjeldende periode]]/Driftsutgifter[[#This Row],[Forrige periode]])-1),IF(AND(Driftsutgifter[[#This Row],[Gjeldende periode]]<Driftsutgifter[[#This Row],[Forrige periode]],Driftsutgifter[[#This Row],[Forrige periode]]<0),-((Driftsutgifter[[#This Row],[Gjeldende periode]]/Driftsutgifter[[#This Row],[Forrige periode]])-1),(Driftsutgifter[[#This Row],[Gjeldende periode]]/Driftsutgifter[[#This Row],[Forrige periode]])-1))),\"-\")","v":{"v":0,"d":"0.00%"}},{"$f":"IFERROR(IF(Driftsutgifter[[#This Row],[Budsjett]]=Driftsutgifter[[#This Row],[Gjeldende periode]],0,IF(Driftsutgifter[[#This Row],[Gjeldende periode]]>Driftsutgifter[[#This Row],[Budsjett]],ABS((Driftsutgifter[[#This Row],[Gjeldende periode]]/Driftsutgifter[[#This Row],[Budsjett]])-1),IF(AND(Driftsutgifter[[#This Row],[Gjeldende periode]]<Driftsutgifter[[#This Row],[Budsjett]],Driftsutgifter[[#This Row],[Budsjett]]<0),-((Driftsutgifter[[#This Row],[Gjeldende periode]]/Driftsutgifter[[#This Row],[Budsjett]])-1),(Driftsutgifter[[#This Row],[Gjeldende periode]]/Driftsutgifter[[#This Row],[Budsjett]])-1))),\"-\")","v":{"v":0,"d":"0.00%"}}]
[null,"Generell og administrativ","Telefon",{"$nulls":3},{"$f":"IFERROR(IF(Salgsomsetning=0,\"-\",Driftsutgifter[[#This Row],[Gjeldende periode]]/Salgsomsetning),\"-\")","v":"-"},{"$f":"IFERROR(IF(Driftsutgifter[[#This Row],[Forrige periode]]=Driftsutgifter[[#This Row],[Gjeldende periode]],0,IF(Driftsutgifter[[#This Row],[Gjeldende periode]]>Driftsutgifter[[#This Row],[Forrige periode]],ABS((Driftsutgifter[[#This Row],[Gjeldende periode]]/Driftsutgifter[[#This Row],[Forrige periode]])-1),IF(AND(Driftsutgifter[[#This Row],[Gjeldende periode]]<Driftsutgifter[[#This Row],[Forrige periode]],Driftsutgifter[[#This Row],[Forrige periode]]<0),-((Driftsutgifter[[#This Row],[Gjeldende periode]]/Driftsutgifter[[#This Row],[Forrige periode]])-1),(Driftsutgifter[[#This Row],[Gjeldende periode]]/Driftsutgifter[[#This Row],[Forrige periode]])-1))),\"-\")","v":{"v":0,"d":"0.00%"}},{"$f":"IFERROR(IF(Driftsutgifter[[#This Row],[Budsjett]]=Driftsutgifter[[#This Row],[Gjeldende periode]],0,IF(Driftsutgifter[[#This Row],[Gjeldende periode]]>Driftsutgifter[[#This Row],[Budsjett]],ABS((Driftsutgifter[[#This Row],[Gjeldende periode]]/Driftsutgifter[[#This Row],[Budsjett]])-1),IF(AND(Driftsutgifter[[#This Row],[Gjeldende periode]]<Driftsutgifter[[#This Row],[Budsjett]],Driftsutgifter[[#This Row],[Budsjett]]<0),-((Driftsutgifter[[#This Row],[Gjeldende periode]]/Driftsutgifter[[#This Row],[Budsjett]])-1),(Driftsutgifter[[#This Row],[Gjeldende periode]]/Driftsutgifter[[#This Row],[Budsjett]])-1))),\"-\")","v":{"v":0,"d":"0.00%"}}]
[null,"Generell og administrativ","Strøm",{"$nulls":3},{"$f":"IFERROR(IF(Salgsomsetning=0,\"-\",Driftsutgifter[[#This Row],[Gjeldende periode]]/Salgsomsetning),\"-\")","v":"-"},{"$f":"IFERROR(IF(Driftsutgifter[[#This Row],[Forrige periode]]=Driftsutgifter[[#This Row],[Gjeldende periode]],0,IF(Driftsutgifter[[#This Row],[Gjeldende periode]]>Driftsutgifter[[#This Row],[Forrige periode]],ABS((Driftsutgifter[[#This Row],[Gjeldende periode]]/Driftsutgifter[[#This Row],[Forrige periode]])-1),IF(AND(Driftsutgifter[[#This Row],[Gjeldende periode]]<Driftsutgifter[[#This Row],[Forrige periode]],Driftsutgifter[[#This Row],[Forrige periode]]<0),-((Driftsutgifter[[#This Row],[Gjeldende periode]]/Driftsutgifter[[#This Row],[Forrige periode]])-1),(Driftsutgifter[[#This Row],[Gjeldende periode]]/Driftsutgifter[[#This Row],[Forrige periode]])-1))),\"-\")","v":{"v":0,"d":"0.00%"}},{"$f":"IFERROR(IF(Driftsutgifter[[#This Row],[Budsjett]]=Driftsutgifter[[#This Row],[Gjeldende periode]],0,IF(Driftsutgifter[[#This Row],[Gjeldende periode]]>Driftsutgifter[[#This Row],[Budsjett]],ABS((Driftsutgifter[[#This Row],[Gjeldende periode]]/Driftsutgifter[[#This Row],[Budsjett]])-1),IF(AND(Driftsutgifter[[#This Row],[Gjeldende periode]]<Driftsutgifter[[#This Row],[Budsjett]],Driftsutgifter[[#This Row],[Budsjett]]<0),-((Driftsutgifter[[#This Row],[Gjeldende periode]]/Driftsutgifter[[#This Row],[Budsjett]])-1),(Driftsutgifter[[#This Row],[Gjeldende periode]]/Driftsutgifter[[#This Row],[Budsjett]])-1))),\"-\")","v":{"v":0,"d":"0.00%"}}]
[null,"Generell og administrativ","Avskrivning",{"$nulls":3},{"$f":"IFERROR(IF(Salgsomsetning=0,\"-\",Driftsutgifter[[#This Row],[Gjeldende periode]]/Salgsomsetning),\"-\")","v":"-"},{"$f":"IFERROR(IF(Driftsutgifter[[#This Row],[Forrige periode]]=Driftsutgifter[[#This Row],[Gjeldende periode]],0,IF(Driftsutgifter[[#This Row],[Gjeldende periode]]>Driftsutgifter[[#This Row],[Forrige periode]],ABS((Driftsutgifter[[#This Row],[Gjeldende periode]]/Driftsutgifter[[#This Row],[Forrige periode]])-1),IF(AND(Driftsutgifter[[#This Row],[Gjeldende periode]]<Driftsutgifter[[#This Row],[Forrige periode]],Driftsutgifter[[#This Row],[Forrige periode]]<0),-((Driftsutgifter[[#This Row],[Gjeldende periode]]/Driftsutgifter[[#This Row],[Forrige periode]])-1),(Driftsutgifter[[#This Row],[Gjeldende periode]]/Driftsutgifter[[#This Row],[Forrige periode]])-1))),\"-\")","v":{"v":0,"d":"0.00%"}},{"$f":"IFERROR(IF(Driftsutgifter[[#This Row],[Budsjett]]=Driftsutgifter[[#This Row],[Gjeldende periode]],0,IF(Driftsutgifter[[#This Row],[Gjeldende periode]]>Driftsutgifter[[#This Row],[Budsjett]],ABS((Driftsutgifter[[#This Row],[Gjeldende periode]]/Driftsutgifter[[#This Row],[Budsjett]])-1),IF(AND(Driftsutgifter[[#This Row],[Gjeldende periode]]<Driftsutgifter[[#This Row],[Budsjett]],Driftsutgifter[[#This Row],[Budsjett]]<0),-((Driftsutgifter[[#This Row],[Gjeldende periode]]/Driftsutgifter[[#This Row],[Budsjett]])-1),(Driftsutgifter[[#This Row],[Gjeldende periode]]/Driftsutgifter[[#This Row],[Budsjett]])-1))),\"-\")","v":{"v":0,"d":"0.00%"}}]
[null,"Generell og administrativ","Forsikring",{"$nulls":3},{"$f":"IFERROR(IF(Salgsomsetning=0,\"-\",Driftsutgifter[[#This Row],[Gjeldende periode]]/Salgsomsetning),\"-\")","v":"-"},{"$f":"IFERROR(IF(Driftsutgifter[[#This Row],[Forrige periode]]=Driftsutgifter[[#This Row],[Gjeldende periode]],0,IF(Driftsutgifter[[#This Row],[Gjeldende periode]]>Driftsutgifter[[#This Row],[Forrige periode]],ABS((Driftsutgifter[[#This Row],[Gjeldende periode]]/Driftsutgifter[[#This Row],[Forrige periode]])-1),IF(AND(Driftsutgifter[[#This Row],[Gjeldende periode]]<Driftsutgifter[[#This Row],[Forrige periode]],Driftsutgifter[[#This Row],[Forrige periode]]<0),-((Driftsutgifter[[#This Row],[Gjeldende periode]]/Driftsutgifter[[#This Row],[Forrige periode]])-1),(Driftsutgifter[[#This Row],[Gjeldende periode]]/Driftsutgifter[[#This Row],[Forrige periode]])-1))),\"-\")","v":{"v":0,"d":"0.00%"}},{"$f":"IFERROR(IF(Driftsutgifter[[#This Row],[Budsjett]]=Driftsutgifter[[#This Row],[Gjeldende periode]],0,IF(Driftsutgifter[[#This Row],[Gjeldende periode]]>Driftsutgifter[[#This Row],[Budsjett]],ABS((Driftsutgifter[[#This Row],[Gjeldende periode]]/Driftsutgifter[[#This Row],[Budsjett]])-1),IF(AND(Driftsutgifter[[#This Row],[Gjeldende periode]]<Driftsutgifter[[#This Row],[Budsjett]],Driftsutgifter[[#This Row],[Budsjett]]<0),-((Driftsutgifter[[#This Row],[Gjeldende periode]]/Driftsutgifter[[#This Row],[Budsjett]])-1),(Driftsutgifter[[#This Row],[Gjeldende periode]]/Driftsutgifter[[#This Row],[Budsjett]])-1))),\"-\")","v":{"v":0,"d":"0.00%"}}]
[null,"Generell og administrativ","Reparasjon og vedlikehold",{"$nulls":3},{"$f":"IFERROR(IF(Salgsomsetning=0,\"-\",Driftsutgifter[[#This Row],[Gjeldende periode]]/Salgsomsetning),\"-\")","v":"-"},{"$f":"IFERROR(IF(Driftsutgifter[[#This Row],[Forrige periode]]=Driftsutgifter[[#This Row],[Gjeldende periode]],0,IF(Driftsutgifter[[#This Row],[Gjeldende periode]]>Driftsutgifter[[#This Row],[Forrige periode]],ABS((Driftsutgifter[[#This Row],[Gjeldende periode]]/Driftsutgifter[[#This Row],[Forrige periode]])-1),IF(AND(Driftsutgifter[[#This Row],[Gjeldende periode]]<Driftsutgifter[[#This Row],[Forrige periode]],Driftsutgifter[[#This Row],[Forrige periode]]<0),-((Driftsutgifter[[#This Row],[Gjeldende periode]]/Driftsutgifter[[#This Row],[Forrige periode]])-1),(Driftsutgifter[[#This Row],[Gjeldende periode]]/Driftsutgifter[[#This Row],[Forrige periode]])-1))),\"-\")","v":{"v":0,"d":"0.00%"}},{"$f":"IFERROR(IF(Driftsutgifter[[#This Row],[Budsjett]]=Driftsutgifter[[#This Row],[Gjeldende periode]],0,IF(Driftsutgifter[[#This Row],[Gjeldende periode]]>Driftsutgifter[[#This Row],[Budsjett]],ABS((Driftsutgifter[[#This Row],[Gjeldende periode]]/Driftsutgifter[[#This Row],[Budsjett]])-1),IF(AND(Driftsutgifter[[#This Row],[Gjeldende periode]]<Driftsutgifter[[#This Row],[Budsjett]],Driftsutgifter[[#This Row],[Budsjett]]<0),-((Driftsutgifter[[#This Row],[Gjeldende periode]]/Driftsutgifter[[#This Row],[Budsjett]])-1),(Driftsutgifter[[#This Row],[Gjeldende periode]]/Driftsutgifter[[#This Row],[Budsjett]])-1))),\"-\")","v":{"v":0,"d":"0.00%"}}]
[null,"Generell og administrativ","Andre utgifter (spesifiser)",{"$nulls":3},{"$f":"IFERROR(IF(Salgsomsetning=0,\"-\",Driftsutgifter[[#This Row],[Gjeldende periode]]/Salgsomsetning),\"-\")","v":"-"},{"$f":"IFERROR(IF(Driftsutgifter[[#This Row],[Forrige periode]]=Driftsutgifter[[#This Row],[Gjeldende periode]],0,IF(Driftsutgifter[[#This Row],[Gjeldende periode]]>Driftsutgifter[[#This Row],[Forrige periode]],ABS((Driftsutgifter[[#This Row],[Gjeldende periode]]/Driftsutgifter[[#This Row],[Forrige periode]])-1),IF(AND(Driftsutgifter[[#This Row],[Gjeldende periode]]<Driftsutgifter[[#This Row],[Forrige periode]],Driftsutgifter[[#This Row],[Forrige periode]]<0),-((Driftsutgifter[[#This Row],[Gjeldende periode]]/Driftsutgifter[[#This Row],[Forrige periode]])-1),(Driftsutgifter[[#This Row],[Gjeldende periode]]/Driftsutgifter[[#This Row],[Forrige periode]])-1))),\"-\")","v":{"v":0,"d":"0.00%"}},{"$f":"IFERROR(IF(Driftsutgifter[[#This Row],[Budsjett]]=Driftsutgifter[[#This Row],[Gjeldende periode]],0,IF(Driftsutgifter[[#This Row],[Gjeldende periode]]>Driftsutgifter[[#This Row],[Budsjett]],ABS((Driftsutgifter[[#This Row],[Gjeldende periode]]/Driftsutgifter[[#This Row],[Budsjett]])-1),IF(AND(Driftsutgifter[[#This Row],[Gjeldende periode]]<Driftsutgifter[[#This Row],[Budsjett]],Driftsutgifter[[#This Row],[Budsjett]]<0),-((Driftsutgifter[[#This Row],[Gjeldende periode]]/Driftsutgifter[[#This Row],[Budsjett]])-1),(Driftsutgifter[[#This Row],[Gjeldende periode]]/Driftsutgifter[[#This Row],[Budsjett]])-1))),\"-\")","v":{"v":0,"d":"0.00%"}}]
[null,"Generell og administrativ","Andre utgifter (spesifiser)",{"$nulls":3},{"$f":"IFERROR(IF(Salgsomsetning=0,\"-\",Driftsutgifter[[#This Row],[Gjeldende periode]]/Salgsomsetning),\"-\")","v":"-"},{"$f":"IFERROR(IF(Driftsutgifter[[#This Row],[Forrige periode]]=Driftsutgifter[[#This Row],[Gjeldende periode]],0,IF(Driftsutgifter[[#This Row],[Gjeldende periode]]>Driftsutgifter[[#This Row],[Forrige periode]],ABS((Driftsutgifter[[#This Row],[Gjeldende periode]]/Driftsutgifter[[#This Row],[Forrige periode]])-1),IF(AND(Driftsutgifter[[#This Row],[Gjeldende periode]]<Driftsutgifter[[#This Row],[Forrige periode]],Driftsutgifter[[#This Row],[Forrige periode]]<0),-((Driftsutgifter[[#This Row],[Gjeldende periode]]/Driftsutgifter[[#This Row],[Forrige periode]])-1),(Driftsutgifter[[#This Row],[Gjeldende periode]]/Driftsutgifter[[#This Row],[Forrige periode]])-1))),\"-\")","v":{"v":0,"d":"0.00%"}},{"$f":"IFERROR(IF(Driftsutgifter[[#This Row],[Budsjett]]=Driftsutgifter[[#This Row],[Gjeldende periode]],0,IF(Driftsutgifter[[#This Row],[Gjeldende periode]]>Driftsutgifter[[#This Row],[Budsjett]],ABS((Driftsutgifter[[#This Row],[Gjeldende periode]]/Driftsutgifter[[#This Row],[Budsjett]])-1),IF(AND(Driftsutgifter[[#This Row],[Gjeldende periode]]<Driftsutgifter[[#This Row],[Budsjett]],Driftsutgifter[[#This Row],[Budsjett]]<0),-((Driftsutgifter[[#This Row],[Gjeldende periode]]/Driftsutgifter[[#This Row],[Budsjett]])-1),(Driftsutgifter[[#This Row],[Gjeldende periode]]/Driftsutgifter[[#This Row],[Budsjett]])-1))),\"-\")","v":{"v":0,"d":"0.00%"}}]
[null,"Totale driftskostnader",null,{"$f":"SUBTOTAL(109,Driftsutgifter[Forrige periode])","v":0},{"$f":"SUBTOTAL(109,Driftsutgifter[Budsjett])","v":0},{"$f":"SUBTOTAL(109,Driftsutgifter[Gjeldende periode])","v":0},{"$f":"SUBTOTAL(109,Driftsutgifter[Gjeldende periode som % av salg])","v":{"v":0,"d":"0.00%"}},{"$f":"SUBTOTAL(109,Driftsutgifter[% endring fra forrige periode])","v":{"v":0,"d":"0.00%"}},{"$f":"SUBTOTAL(109,Driftsutgifter[% endring fra budsjett])","v":{"v":0,"d":"0.00%"}}]

{"sheet":"Avgifter","index":4,"n_rows":10,"n_cols":9,"rows_kept":10,"merged":[[0,7,2,8]]}
[null,{"$f":"Arbeidsbok_Tittel","v":"Resultatregnskap"}]
[null,{"$f":"Firmanavn","v":"Firmanavn"},"Angitt i 000"]
[null,"Avgifter",{"$f":"IFERROR(Skatt[[#Totals],[Gjeldende periode]],\"-\")","v":0}]
[null,"Type","Beskrivelse","Forrige periode","Budsjett","Gjeldende periode","Gjeldende periode som % av salg","% endring fra forrige periode","% endring fra budsjett"]
[null,"Avgifter","Inntektsskatt",{"$nulls":3},{"$f":"IFERROR(IF(Salgsomsetning=0,\"-\",Skatt[[#This Row],[Gjeldende periode]]/Salgsomsetning),\"-\")","v":"-"},{"$f":"IFERROR(IF(Skatt[[#This Row],[Forrige periode]]=Skatt[[#This Row],[Gjeldende periode]],0,IF(Skatt[[#This Row],[Gjeldende periode]]>Skatt[[#This Row],[Forrige periode]],ABS((Skatt[[#This Row],[Gjeldende periode]]/Skatt[[#This Row],[Forrige periode]])-1),IF(AND(Skatt[[#This Row],[Gjeldende periode]]<Skatt[[#This Row],[Forrige periode]],Skatt[[#This Row],[Forrige periode]]<0),-((Skatt[[#This Row],[Gjeldende periode]]/Skatt[[#This Row],[Forrige periode]])-1),(Skatt[[#This Row],[Gjeldende periode]]/Skatt[[#This Row],[Forrige periode]])-1))),\"-\")","v":{"v":0,"d":"0.00%"}},{"$f":"IFERROR(IF(Skatt[[#This Row],[Budsjett]]=Skatt[[#This Row],[Gjeldende periode]],0,IF(Skatt[[#This Row],[Gjeldende periode]]>Skatt[[#This Row],[Budsjett]],ABS((Skatt[[#This Row],[Gjeldende periode]]/Skatt[[#This Row],[Budsjett]])-1),IF(AND(Skatt[[#This Row],[Gjeldende periode]]<Skatt[[#This Row],[Budsjett]],Skatt[[#This Row],[Budsjett]]<0),-((Skatt[[#This Row],[Gjeldende periode]]/Skatt[[#This Row],[Budsjett]])-1),(Skatt[[#This Row],[Gjeldende periode]]/Skatt[[#This Row],[Budsjett]])-1))),\"-\")","v":{"v":0,"d":"0.00%"}}]
[null,"Avgifter","Arbeidsgiveravgift",{"$nulls":3},{"$f":"IFERROR(IF(Salgsomsetning=0,\"-\",Skatt[[#This Row],[Gjeldende periode]]/Salgsomsetning),\"-\")","v":"-"},{"$f":"IFERROR(IF(Skatt[[#This Row],[Forrige periode]]=Skatt[[#This Row],[Gjeldende periode]],0,IF(Skatt[[#This Row],[Gjeldende periode]]>Skatt[[#This Row],[Forrige periode]],ABS((Skatt[[#This Row],[Gjeldende periode]]/Skatt[[#This Row],[Forrige periode]])-1),IF(AND(Skatt[[#This Row],[Gjeldende periode]]<Skatt[[#This Row],[Forrige periode]],Skatt[[#This Row],[Forrige periode]]<0),-((Skatt[[#This Row],[Gjeldende periode]]/Skatt[[#This Row],[Forrige periode]])-1),(Skatt[[#This Row],[Gjeldende periode]]/Skatt[[#This Row],[Forrige periode]])-1))),\"-\")","v":{"v":0,"d":"0.00%"}},{"$f":"IFERROR(IF(Skatt[[#This Row],[Budsjett]]=Skatt[[#This Row],[Gjeldende periode]],0,IF(Skatt[[#This Row],[Gjeldende periode]]>Skatt[[#This Row],[Budsjett]],ABS((Skatt[[#This Row],[Gjeldende periode]]/Skatt[[#This Row],[Budsjett]])-1),IF(AND(Skatt[[#This Row],[Gjeldende periode]]<Skatt[[#This Row],[Budsjett]],Skatt[[#This Row],[Budsjett]]<0),-((Skatt[[#This Row],[Gjeldende periode]]/Skatt[[#This Row],[Budsjett]])-1),(Skatt[[#This Row],[Gjeldende periode]]/Skatt[[#This Row],[Budsjett]])-1))),\"-\")","v":{"v":0,"d":"0.00%"}}]
[null,"Avgifter","Eiendomsskatt",{"$nulls":3},{"$f":"IFERROR(IF(Salgsomsetning=0,\"-\",Skatt[[#This Row],[Gjeldende periode]]/Salgsomsetning),\"-\")","v":"-"},{"$f":"IFERROR(IF(Skatt[[#This Row],[Forrige periode]]=Skatt[[#This Row],[Gjeldende periode]],0,IF(Skatt[[#This Row],[Gjeldende periode]]>Skatt[[#This Row],[Forrige periode]],ABS((Skatt[[#This Row],[Gjeldende periode]]/Skatt[[#This Row],[Forrige periode]])-1),IF(AND(Skatt[[#This Row],[Gjeldende periode]]<Skatt[[#This Row],[Forrige periode]],Skatt[[#This Row],[Forrige periode]]<0),-((Skatt[[#This Row],[Gjeldende periode]]/Skatt[[#This Row],[Forrige periode]])-1),(Skatt[[#This Row],[Gjeldende periode]]/Skatt[[#This Row],[Forrige periode]])-1))),\"-\")","v":{"v":0,"d":"0.00%"}},{"$f":"IFERROR(IF(Skatt[[#This Row],[Budsjett]]=Skatt[[#This Row],[Gjeldende periode]],0,IF(Skatt[[#This Row],[Gjeldende periode]]>Skatt[[#This Row],[Budsjett]],ABS((Skatt[[#This Row],[Gjeldende periode]]/Skatt[[#This Row],[Budsjett]])-1),IF(AND(Skatt[[#This Row],[Gjeldende periode]]<Skatt[[#This Row],[Budsjett]],Skatt[[#This Row],[Budsjett]]<0),-((Skatt[[#This Row],[Gjeldende periode]]/Skatt[[#This Row],[Budsjett]])-1),(Skatt[[#This Row],[Gjeldende periode]]/Skatt[[#This Row],[Budsjett]])-1))),\"-\")","v":{"v":0,"d":"0.00%"}}]
[null,"Avgifter","Annen skatt (spesifiser)",{"$nulls":3},{"$f":"IFERROR(IF(Salgsomsetning=0,\"-\",Skatt[[#This Row],[Gjeldende periode]]/Salgsomsetning),\"-\")","v":"-"},{"$f":"IFERROR(IF(Skatt[[#This Row],[Forrige periode]]=Skatt[[#This Row],[Gjeldende periode]],0,IF(Skatt[[#This Row],[Gjeldende periode]]>Skatt[[#This Row],[Forrige periode]],ABS((Skatt[[#This Row],[Gjeldende periode]]/Skatt[[#This Row],[Forrige periode]])-1),IF(AND(Skatt[[#This Row],[Gjeldende periode]]<Skatt[[#This Row],[Forrige periode]],Skatt[[#This Row],[Forrige periode]]<0),-((Skatt[[#This Row],[Gjeldende periode]]/Skatt[[#This Row],[Forrige periode]])-1),(Skatt[[#This Row],[Gjeldende periode]]/Skatt[[#This Row],[Forrige periode]])-1))),\"-\")","v":{"v":0,"d":"0.00%"}},{"$f":"IFERROR(IF(Skatt[[#This Row],[Budsjett]]=Skatt[[#This Row],[Gjeldende periode]],0,IF(Skatt[[#This Row],[Gjeldende periode]]>Skatt[[#This Row],[Budsjett]],ABS((Skatt[[#This Row],[Gjeldende periode]]/Skatt[[#This Row],[Budsjett]])-1),IF(AND(Skatt[[#This Row],[Gjeldende periode]]<Skatt[[#This Row],[Budsjett]],Skatt[[#This Row],[Budsjett]]<0),-((Skatt[[#This Row],[Gjeldende periode]]/Skatt[[#This Row],[Budsjett]])-1),(Skatt[[#This Row],[Gjeldende periode]]/Skatt[[#This Row],[Budsjett]])-1))),\"-\")","v":{"v":0,"d":"0.00%"}}]
[null,"Avgifter","Annen skatt (spesifiser)",{"$nulls":3},{"$f":"IFERROR(IF(Salgsomsetning=0,\"-\",Skatt[[#This Row],[Gjeldende periode]]/Salgsomsetning),\"-\")","v":"-"},{"$f":"IFERROR(IF(Skatt[[#This Row],[Forrige periode]]=Skatt[[#This Row],[Gjeldende periode]],0,IF(Skatt[[#This Row],[Gjeldende periode]]>Skatt[[#This Row],[Forrige periode]],ABS((Skatt[[#This Row],[Gjeldende periode]]/Skatt[[#This Row],[Forrige periode]])-1),IF(AND(Skatt[[#This Row],[Gjeldende periode]]<Skatt[[#This Row],[Forrige periode]],Skatt[[#This Row],[Forrige periode]]<0),-((Skatt[[#This Row],[Gjeldende periode]]/Skatt[[#This Row],[Forrige periode]])-1),(Skatt[[#This Row],[Gjeldende periode]]/Skatt[[#This Row],[Forrige periode]])-1))),\"-\")","v":{"v":0,"d":"0.00%"}},{"$f":"IFERROR(IF(Skatt[[#This Row],[Budsjett]]=Skatt[[#This Row],[Gjeldende periode]],0,IF(Skatt[[#This Row],[Gjeldende periode]]>Skatt[[#This Row],[Budsjett]],ABS((Skatt[[#This Row],[Gjeldende periode]]/Skatt[[#This Row],[Budsjett]])-1),IF(AND(Skatt[[#This Row],[Gjeldende periode]]<Skatt[[#This Row],[Budsjett]],Skatt[[#This Row],[Budsjett]]<0),-((Skatt[[#This Row],[Gjeldende periode]]/Skatt[[#This Row],[Budsjett]])-1),(Skatt[[#This Row],[Gjeldende periode]]/Skatt[[#This Row],[Budsjett]])-1))),\"-\")","v":{"v":0,"d":"0.00%"}}]
[null,"Totalskatt",null,{"$f":"SUBTOTAL(109,Skatt[Forrige periode])","v":0},{"$f":"SUBTOTAL(109,Skatt[Budsjett])","v":0},{"$f":"SUBTOTAL(109,Skatt[Gjeldende periode])","v":0},{"$f":"IFERROR(SUBTOTAL(109,Skatt[Gjeldende periode som % av salg]),\"-\")","v":{"v":0,"d":"0.00%"}},{"$f":"SUBTOTAL(109,Skatt[% endring fra forrige periode])","v":{"v":0,"d":"0.00%"}},{"$f":"SUBTOTAL(109,Skatt[% endring fra budsjett])","v":{"v":0,"d":"0.00%"}}]

{"sheet":"Kategorier","index":5,"n_rows":8,"n_cols":2,"rows_kept":8}
[null,"Kategorier"]
[null,"Salgsomsetning"]
[null,"Kostnad for salg"]
[null,"Inntekter"]
[null,"Salg og markedsføring"]
[null,"Forskning og utvikling"]
[null,"Generell og administrativ"]
[null,"Avgifter"]